[Event "FIDE WCCC Open-08 2024"]
[Site "Montesilvano"]
[Date "2024.11.19"]
[Round "5.37"]
[White "Movsisyan, Samvel"]
[Black "Shroff, Dhairya Amit"]
[Result "1-0"]
[ECO "B07"]
[WhiteElo "1604"]
[BlackElo "1444"]
[Annotator "NA RC"]
[PlyCount "78"]
[EventDate "2024.11.18"]
[EventType "swiss"]
[EventCountry "ITA"]
[SourceTitle "playchess.com"]
[Source "ChessBase"]
[SourceQuality "1"]
[TimeControl "5400+30"]

1. d4 {[%emt 0:00:01]} Nf6 {[%emt 0:00:54]} 2. Nc3 {[%emt 0:00:07]} g6 {[%emt 0:03:44]} 3. e4 {[%emt 0:00:15]} d6 {[%emt 0:01:20]} 4. Be2 {[%emt 0:00:30]} Bg7 {[%emt 0:01:16]} 5. g4 {[%emt 0:00:40]} Nfd7 {[%emt 0:06:05]} 6. g5 {[%emt 1:31:57]} c5 {[%emt 0:01:34]} 7. d5 {[%emt 0:00:00]} Nb6 {[%emt 0:02:56]} 8. a4 {[%emt 0:00:00]} a5 {[%emt 0:01:58]} 9. h4 {[%emt 0:00:00]} e6 {[%emt 1:15:13]} 10. dxe6 {[%emt 0:00:00]} Bxe6 {[%emt 0:00:00]} 11. Nb5 {[%emt 0:00:00]} d5 {[%emt 0:00:00]} 12. Bf4 {[%emt 0:00:00]} Na6 {[%emt 0:00:00]} 13. Nd6+ {[%emt 0:00:00]} Ke7 {[%emt 0:00:00]} 14. Nxb7 {[%emt 0:00:00]} Qc8 {[%emt 0:00:00]} 15. Bxa6 {[%emt 0:00:00]} Rxa6 {[%emt 0:00:00]} 16. Nd6 {[%emt 0:00:00]} Qc6 {[%emt 0:00:00]} 17. Qe2 {[%emt 0:00:00]} Raa8 {[%emt 0:00:00]} 18. Nf3 {[%emt 0:00:00]} dxe4 {[%emt 0:00:00]} 19. Ne5 {[%emt 0:00:00]} Bxe5 {[%emt 0:00:00]} 20. Bxe5 {[%emt 0:00:00]} Rhd8 {[%emt 0:00:00]} 21. Nxe4 {[%emt 0:00:00]} Kf8 {[%emt 0:00:00]} 22. h5 {[%emt 0:00:00]} Bc4 {[%emt 0:00:00]} 23. Qe3 {[%emt 0:00:00]} Nd5 {[%emt 0:00:00]} 24. Qxc5+ {[%emt 0:00:00]} Qxc5 {[%emt 0:00:00]} 25. Nxc5 {[%emt 0:00:00]} Nb4 {[%emt 0:00:00]} 26. Rc1 {[%emt 0:00:00]} Rac8 {[%emt 0:00:00]} 27. Nb7 {[%emt 0:00:00]} Re8 {[%emt 0:00:00]} 28. f4 {[%emt 0:00:00]} Bd5 {[%emt 0:00:00]} 29. hxg6 {[%emt 0:00:00]} Bxh1 {[%emt 0:00:00]} 30. gxh7 {[%emt 0:00:00]} Rxe5+ {[%emt 0:00:00]} 31. fxe5 {[%emt 0:00:00]} Kg7 {[%emt 0:00:00]} 32. Nd6 {[%emt 0:00:00]} Rc7 {[%emt 0:00:00]} 33. Ne8+ {[%emt 0:00:00]} Kxh7 {[%emt 0:00:00]} 34. Nxc7 {[%emt 0:00:00]} Kg6 {[%emt 0:00:00]} 35. Kd2 {[%emt 0:00:00]} Be4 {[%emt 0:00:00]} 36. e6 {[%emt 0:00:00]} fxe6 {[%emt 0:00:00]} 37. Nxe6 {[%emt 0:00:00]} Kf5 {[%emt 0:00:00]} 38. Nc5 {[%emt 0:00:00]} Bd5 {[%emt 0:00:00]} 39. Rg1 {[%emt 0:00:00]} Ke5 {[%emt 0:00:00]} 1-0

[Event "FIDE WCCC Open-08 2024"]
[Site "Montesilvano"]
[Date "2024.11.19"]
[Round "5.39"]
[White "Muratshin, Ramazan"]
[Black "Ameen Akbar T A"]
[Result "1-0"]
[ECO "B40"]
[WhiteElo "1597"]
[BlackElo "1579"]
[Annotator "NA RC"]
[PlyCount "83"]
[EventDate "2024.11.18"]
[EventType "swiss"]
[EventCountry "ITA"]
[SourceTitle "playchess.com"]
[Source "ChessBase"]
[SourceQuality "1"]
[TimeControl "5400+30"]

1. e4 {[%emt 0:00:04]} c5 {[%emt 0:00:07]} 2. Nf3 {[%emt 0:00:10]} e6 {[%emt 0:00:11]} 3. d4 {[%emt 0:00:04]} cxd4 {[%emt 0:00:05]} 4. Nxd4 {[%emt 0:00:07]} Nf6 {[%emt 0:02:00]} 5. Bd3 {[%emt 0:02:39]} Bc5 {[%emt 0:06:35]} 6. Nb3 {[%emt 0:00:30]} Bb6 {[%emt 0:01:18]} 7. O-O {[%emt 0:00:56]} Nc6 {[%emt 1:23:44]} 8. Bg5 {[%emt 0:01:35]} d6 {[%emt 0:00:00]} 9. Kh1 {[%emt 0:03:23]} Bd7 {[%emt 0:00:00]} 10. Nc3 {[%emt 0:00:21]} h6 {[%emt 0:00:00]} 11. Bh4 {[%emt 0:00:29]} g5 {[%emt 0:00:00]} 12. Bg3 {[%emt 0:03:30]} e5 {[%emt 0:00:00]} 13. Nb5 {[%emt 0:01:15]} Be6 {[%emt 0:00:00]} 14. c4 {[%emt 0:04:30]} a6 {[%emt 0:00:00]} 15. Nc3 {[%emt 0:00:14]} h5 {[%emt 0:00:00]} 16. h3 {[%emt 0:01:51]} h4 {[%emt 0:00:00]} 17. Bh2 {[%emt 0:06:28]} g4 {[%emt 0:00:00]} 18. hxg4 {[%emt 0:00:22]} Nxg4 {[%emt 0:00:00]} 19. Qe2 {[%emt 0:00:12]} Qg5 {[%emt 0:00:00]} 20. Nd5 {[%emt 0:06:39]} Bxd5 {[%emt 0:00:00]} 21. exd5 {[%emt 0:00:28]} Ne7 {[%emt 0:00:00]} 22. c5 {[%emt 0:00:18]} Nxh2 {[%emt 0:00:00]} 23. Kxh2 {[%emt 0:00:29]} Rg8 {[%emt 0:00:00]} 24. Qf3 {[%emt 0:00:43]} Bc7 {[%emt 0:00:00]} 25. Rg1 {[%emt 0:07:44]} dxc5 {[%emt 0:00:00]} 26. Kh1 {[%emt 0:01:01]} O-O-O {[%emt 0:00:00]} 27. Nxc5 {[%emt 0:01:25]} Bd6 {[%emt 0:00:00]} 28. Ne4 {[%emt 0:03:05]} Qg7 {[%emt 0:00:00]} 29. Nf6 {[%emt 0:00:34]} Rh8 {[%emt 0:00:00]} 30. Bc4 {[%emt 0:06:19]} Rh6 {[%emt 0:02:25]} 31. Ng4 {[%emt 0:01:56]} Rg6 {[%emt 0:00:39]} 32. Ne3 {[%emt 0:00:12]} Rh8 {[%emt 0:00:43]} 33. Nf5 {[%emt 0:01:24]} Nxf5 {[%emt 0:01:13]} 34. Qxf5+ {[%emt 0:00:13]} Kb8 {[%emt 0:00:27]} 35. Rac1 {[%emt 0:00:39]} Rf6 {[%emt 0:08:33]} 36. Qd7 {[%emt 0:00:44]} Bc5 {[%emt 0:00:00]} 37. Bxa6 {[%emt 0:00:27]} Rxa6 {[%emt 0:00:00]} 38. Rxc5 {[%emt 0:00:14]} e4 {[%emt 0:00:00]} 39. Rc7 {[%emt 0:01:09]} Rb6 {[%emt 0:00:00]} 40. Rc3 {[%emt 0:01:33]} Rxb2 {[%emt 0:00:00]} 41. Qc7+ {[%emt 0:00:06]} Ka8 {[%emt 0:00:00]} 42. Ra3# {[%emt 0:45:28]} 1-0

[Event "FIDE WCCC Open-08 2024"]
[Site "Montesilvano"]
[Date "2024.11.19"]
[Round "5.43"]
[White "Charyyev Charyhekim"]
[Black "Kim, Rian B"]
[Result "1-0"]
[ECO "D02"]
[WhiteElo "1589"]
[BlackElo "1452"]
[Annotator "NA RC"]
[PlyCount "71"]
[EventDate "2024.11.18"]
[EventType "swiss"]
[EventCountry "ITA"]
[SourceTitle "playchess.com"]
[Source "ChessBase"]
[SourceQuality "1"]
[TimeControl "5400+30"]

1. d4 {[%emt 0:00:02]} d5 {[%emt 0:00:10]} 2. Bf4 {[%emt 0:00:17]} e6 {[%emt 0:00:14]} 3. e3 {[%emt 0:00:32]} Bd6 {[%emt 0:00:12]} 4. Bg3 {[%emt 0:00:43]} Nf6 {[%emt 0:00:13]} 5. Nf3 {[%emt 0:00:54]} c5 {[%emt 0:00:20]} 6. c3 {[%emt 0:00:57]} O-O {[%emt 0:00:16]} 7. Ne5 {[%emt 0:01:23]} Bxe5 {[%emt 0:06:58]} 8. Bxe5 {[%emt 0:02:30]} Nbd7 {[%emt 0:03:06]} 9. Bd6 {[%emt 0:02:27]} Re8 {[%emt 0:02:06]} 10. Be5 {[%emt 0:03:59]} b6 {[%emt 0:07:42]} 11. Bd3 {[%emt 0:05:09]} Bb7 {[%emt 0:03:08]} 12. f4 {[%emt 0:02:17]} Qe7 {[%emt 0:14:24]} 13. O-O {[%emt 0:08:48]} Ne4 {[%emt 0:09:09]} 14. Bxe4 {[%emt 0:06:26]} dxe4 {[%emt 0:00:28]} 15. f5 {[%emt 0:11:57]} Qg5 {[%emt 0:49:34]} 16. Bf4 {[%emt 0:50:09]} Qxf5 {[%emt 0:00:00]} 17. g4 {[%emt 0:00:30]} Qg6 {[%emt 0:00:00]} 18. Nd2 {[%emt 0:00:00]} Nf6 {[%emt 0:00:00]} 19. Rf2 {[%emt 0:00:00]} cxd4 {[%emt 0:00:00]} 20. cxd4 {[%emt 0:00:00]} Nd5 {[%emt 0:00:00]} 21. Nc4 {[%emt 0:00:00]} Nxf4 {[%emt 0:00:00]} 22. Rxf4 {[%emt 0:00:00]} f5 {[%emt 0:00:00]} 23. Nd6 {[%emt 0:00:00]} Re7 {[%emt 0:00:00]} 24. Qb3 {[%emt 0:00:00]} Bd5 {[%emt 0:00:00]} 25. Nxf5 {[%emt 0:00:00]} Rd7 {[%emt 0:00:00]} 26. Qb5 {[%emt 0:00:00]} Rad8 {[%emt 0:00:00]} 27. Ng3 {[%emt 0:00:00]} Rc7 {[%emt 0:00:00]} 28. Qb4 {[%emt 0:00:00]} Rdc8 {[%emt 0:00:00]} 29. Raf1 {[%emt 0:00:00]} h6 {[%emt 0:00:00]} 30. Rf8+ {[%emt 0:06:30]} Kh7 {[%emt 0:01:02]} 31. h3 {[%emt 0:00:00]} Rc2 {[%emt 0:02:53]} 32. Nh5 {[%emt 0:00:00]} R8c7 {[%emt 0:02:30]} 33. Qd6 {[%emt 0:00:00]} R2c6 {[%emt 0:01:38]} 34. Qd8 {[%emt 0:00:00]} Qg5 {[%emt 0:00:53]} 35. Rh8+ {[%emt 0:00:00]} Kg6 {[%emt 0:00:10]} 36. Qe8+ {[%emt 0:00:00]} 1-0

[Event "FIDE WCCC Open-08 2024"]
[Site "Montesilvano"]
[Date "2024.11.19"]
[Round "5.45"]
[White "Ok, Miro"]
[Black "Huang, Joshua Kai-En"]
[Result "1-0"]
[ECO "B24"]
[WhiteElo "1656"]
[BlackElo "1424"]
[Annotator "NA RC"]
[PlyCount "71"]
[EventDate "2024.11.18"]
[EventType "swiss"]
[EventCountry "ITA"]
[SourceTitle "playchess.com"]
[Source "ChessBase"]
[SourceQuality "1"]
[TimeControl "5400+30"]

1. e4 {[%emt 0:00:04]} c5 {[%emt 0:00:38]} 2. Nc3 {[%emt 0:00:11]} Nc6 {[%emt 0:00:05]} 3. g3 {[%emt 0:00:07]} Nf6 {[%emt 0:00:29]} 4. f4 {[%emt 0:00:32]} d6 {[%emt 0:00:19]} 5. Bg2 {[%emt 0:00:53]} e5 {[%emt 0:00:33]} 6. d3 {[%emt 0:00:48]} Bd7 {[%emt 0:01:24]} 7. Nge2 {[%emt 0:01:03]} a6 {[%emt 0:02:43]} 8. a4 {[%emt 0:01:16]} Nd4 {[%emt 0:02:03]} 9. O-O {[%emt 0:01:25]} Be7 {[%emt 0:00:47]} 10. f5 {[%emt 0:01:58]} Qc7 {[%emt 0:01:16]} 11. h3 {[%emt 0:01:05]} O-O-O {[%emt 0:00:49]} 12. Nxd4 {[%emt 1:27:08]} exd4 {[%emt 0:01:00]} 13. Ne2 {[%emt 0:00:00]} g6 {[%emt 0:01:00]} 14. c3 {[%emt 0:00:00]} gxf5 {[%emt 0:01:30]} 15. cxd4 {[%emt 0:00:00]} fxe4 {[%emt 0:00:15]} 16. Bg5 {[%emt 0:00:00]} exd3 {[%emt 0:01:00]} 17. Qxd3 {[%emt 0:00:00]} Ng8 {[%emt 0:00:59]} 18. Bxe7 {[%emt 0:00:00]} Nxe7 {[%emt 0:00:12]} 19. Rac1 {[%emt 0:00:00]} Rdf8 {[%emt 0:01:13]} 20. dxc5 {[%emt 0:00:00]} dxc5 {[%emt 0:01:14]} 21. Qe3 {[%emt 0:00:00]} Nc6 {[%emt 0:01:07]} 22. Rxc5 {[%emt 0:00:00]} Qb6 {[%emt 0:01:55]} 23. Rxc6+ {[%emt 0:00:00]} Qxc6 {[%emt 0:00:05]} 24. Bxc6 {[%emt 0:00:00]} Bxc6 {[%emt 0:00:04]} 25. Rc1 {[%emt 0:00:00]} Re8 {[%emt 0:00:44]} 26. Qf2 {[%emt 0:00:00]} Kb8 {[%emt 0:00:31]} 27. Qb6 {[%emt 0:00:00]} Bxa4 {[%emt 0:00:42]} 28. Rc7 {[%emt 0:00:00]} Bc6 {[%emt 0:00:31]} 29. Rxc6 {[%emt 0:00:00]} Re7 {[%emt 0:00:08]} 30. Rc2 {[%emt 0:00:00]} Rhe8 {[%emt 0:00:12]} 31. Nd4 {[%emt 0:00:00]} Re1+ {[%emt 0:00:13]} 32. Kf2 {[%emt 0:00:00]} R1e3 {[%emt 0:01:24]} 33. Nc6+ {[%emt 0:00:00]} Kc8 {[%emt 0:01:22]} 34. Na5+ {[%emt 0:00:00]} Kd7 {[%emt 0:00:38]} 35. Rc7+ {[%emt 0:00:00]} Kd8 {[%emt 0:00:09]} 36. Qc5 {[%emt 0:12:00]} 1-0

[Event "FIDE WCCC Open-08 2024"]
[Site "Montesilvano"]
[Date "2024.11.19"]
[Round "5.48"]
[White "Glod, Peter"]
[Black "Ramirez Mejia, Jose Gregorio"]
[Result "1-0"]
[ECO "B21"]
[WhiteElo "1409"]
[BlackElo "1489"]
[Annotator "NA RC"]
[PlyCount "111"]
[EventDate "2024.11.18"]
[EventType "swiss"]
[EventCountry "ITA"]
[SourceTitle "playchess.com"]
[Source "ChessBase"]
[SourceQuality "1"]
[TimeControl "5400+30"]

1. e4 {[%emt 0:00:02]} c5 {[%emt 0:01:01]} 2. d4 {[%emt 0:00:13]} cxd4 {[%emt 0:00:43]} 3. c3 {[%emt 0:00:11]} d3 {[%emt 0:01:16]} 4. Bxd3 {[%emt 0:05:54]} d6 {[%emt 0:02:42]} 5. Be3 {[%emt 0:01:26]} Nf6 {[%emt 0:02:06]} 6. Nd2 {[%emt 0:01:30]} e6 {[%emt 0:02:42]} 7. Ngf3 {[%emt 0:02:17]} Be7 {[%emt 0:02:32]} 8. O-O {[%emt 0:02:04]} O-O {[%emt 0:05:32]} 9. Re1 {[%emt 0:03:58]} Bd7 {[%emt 0:03:06]} 10. e5 {[%emt 0:01:39]} dxe5 {[%emt 0:07:34]} 11. Nxe5 {[%emt 0:00:22]} Bd6 {[%emt 0:02:11]} 12. Nec4 {[%emt 0:02:31]} Bc7 {[%emt 0:03:24]} 13. Qc2 {[%emt 0:00:39]} b5 {[%emt 0:03:12]} 14. Na3 {[%emt 0:00:43]} a6 {[%emt 0:02:45]} 15. Bg5 {[%emt 0:02:48]} Bxh2+ {[%emt 0:01:56]} 16. Kxh2 {[%emt 0:02:55]} Ng4+ {[%emt 0:00:49]} 17. Kg1 {[%emt 0:01:02]} Qxg5 {[%emt 0:00:32]} 18. Bxh7+ {[%emt 0:00:30]} Kh8 {[%emt 0:00:23]} 19. Nf3 {[%emt 0:02:34]} Qh6 {[%emt 0:01:02]} 20. Be4 {[%emt 0:01:18]} Nc6 {[%emt 0:01:52]} 21. Rad1 {[%emt 0:00:26]} Nf6 {[%emt 0:53:40]} 22. Ne5 {[%emt 0:03:49]} Nxe5 {[%emt 0:00:00]} 23. Bxa8 {[%emt 0:00:45]} Nfg4 {[%emt 0:00:00]} 24. Bb7 {[%emt 0:02:53]} Qh2+ {[%emt 0:00:00]} 25. Kf1 {[%emt 0:00:31]} a5 {[%emt 0:00:00]} 26. Ke2 {[%emt 0:03:01]} b4 {[%emt 0:00:00]} 27. Rh1 {[%emt 0:00:51]} Qxh1 {[%emt 0:00:00]} 28. Rxh1+ {[%emt 0:00:38]} Nh6 {[%emt 0:00:00]} 29. cxb4 {[%emt 0:00:28]} axb4 {[%emt 0:00:00]} 30. Qe4 {[%emt 0:02:25]} f6 {[%emt 0:00:00]} 31. Qxb4 {[%emt 0:02:28]} Rb8 {[%emt 0:00:00]} 32. Qe4 {[%emt 0:02:03]} Rxb7 {[%emt 0:00:00]} 33. Qxb7 {[%emt 0:00:40]} Bc6 {[%emt 0:00:00]} 34. Qc8+ {[%emt 0:00:40]} Kh7 {[%emt 0:00:00]} 35. Qxe6 {[%emt 0:01:17]} Bxg2 {[%emt 0:00:00]} 36. Rh2 {[%emt 0:00:57]} Bf3+ {[%emt 0:00:00]} 37. Kd2 {[%emt 0:00:24]} Bg4 {[%emt 0:00:00]} 38. Rxh6+ {[%emt 0:02:03]} Kxh6 {[%emt 0:00:00]} 39. Qa6 {[%emt 0:01:54]} Nf3+ {[%emt 0:00:00]} 40. Kc1 {[%emt 0:00:23]} Nd4 {[%emt 0:00:00]} 41. Qc4 {[%emt 0:01:10]} Ne2+ {[%emt 0:00:00]} 42. Kd2 {[%emt 0:00:22]} Bh5 {[%emt 0:00:00]} 43. Nc2 {[%emt 0:01:13]} Ng1 {[%emt 0:00:00]} 44. b4 {[%emt 0:02:02]} Nf3+ {[%emt 0:00:00]} 45. Kc1 {[%emt 0:00:39]} Ne5 {[%emt 0:00:00]} 46. Qf4+ {[%emt 0:00:37]} Kh7 {[%emt 0:00:00]} 47. Qf5+ {[%emt 0:00:45]} Bg6 {[%emt 0:00:00]} 48. Qh3+ {[%emt 0:00:38]} Kg8 {[%emt 0:00:00]} 49. b5 {[%emt 0:00:51]} Nc4 {[%emt 0:00:00]} 50. Qc8+ {[%emt 0:00:13]} Kh7 {[%emt 0:00:00]} 51. Qxc4 {[%emt 0:00:09]} Bxc2 {[%emt 0:00:00]} 52. Kxc2 {[%emt 0:00:13]} Kh8 {[%emt 0:00:00]} 53. b6 {[%emt 0:00:21]} Kh7 {[%emt 0:00:00]} 54. b7 {[%emt 0:00:09]} Kh6 {[%emt 0:00:00]} 55. Qg4 {[%emt 0:00:34]} Kh7 {[%emt 0:00:00]} 56. b8=Q {[%emt 0:00:19]} 1-0

[Event "FIDE WCCC Open-08 2024"]
[Site "Montesilvano"]
[Date "2024.11.19"]
[Round "5.51"]
[White "Solovev, Nikolai"]
[Black "Thomas, Robert K"]
[Result "0-1"]
[ECO "B28"]
[WhiteElo "1446"]
[BlackElo "2166"]
[Annotator "RC"]
[PlyCount "76"]
[EventDate "2024.11.18"]
[EventType "swiss"]
[EventCountry "ITA"]
[SourceTitle "playchess.com"]
[Source "ChessBase"]
[SourceQuality "1"]
[TimeControl "5400+30"]

1. e4 {[%emt 0:00:02]} c5 {[%emt 0:00:04]} 2. Nf3 {[%emt 0:00:05]} a6 {[%emt 0:00:03]} 3. c3 {[%emt 0:00:05]} d5 {[%emt 0:00:17]} 4. e5 {[%emt 0:00:09]} Nc6 {[%emt 0:00:21]} 5. d4 {[%emt 0:00:15]} cxd4 {[%emt 0:00:06]} 6. cxd4 {[%emt 0:00:06]} Bg4 {[%emt 0:00:05]} 7. Be2 {[%emt 0:00:35]} e6 {[%emt 0:00:18]} 8. Nc3 {[%emt 0:00:14]} Bb4 {[%emt 0:00:08]} 9. O-O {[%emt 0:00:52]} Nge7 {[%emt 0:00:14]} 10. Bf4 {[%emt 0:00:30]} O-O {[%emt 0:00:14]} 11. Bd3 {[%emt 0:01:29]} Ng6 {[%emt 0:04:00]} 12. Be3 {[%emt 0:02:11]} Qb6 {[%emt 0:07:02]} 13. h3 {[%emt 0:01:25]} Bxf3 {[%emt 0:00:38]} 14. Qxf3 {[%emt 0:00:07]} Qd8 {[%emt 0:06:26]} 15. Qg4 {[%emt 0:04:39]} Qd7 {[%emt 0:07:38]} 16. h4 {[%emt 0:03:52]} f5 {[%emt 0:05:33]} 17. exf6 {[%emt 0:03:42]} Rxf6 {[%emt 0:01:36]} 18. Rfe1 {[%emt 0:02:27]} Re8 {[%emt 0:08:15]} 19. h5 {[%emt 0:02:31]} Nf8 {[%emt 0:57:02]} 20. Bg5 {[%emt 0:02:10]} Rf7 {[%emt 0:00:00]} 21. Bh4 {[%emt 0:07:23]} e5 {[%emt 0:00:00]} 22. Qxd7 {[%emt 0:03:05]} Rxd7 {[%emt 0:00:00]} 23. dxe5 {[%emt 0:07:55]} d4 {[%emt 0:00:00]} 24. e6 {[%emt 0:01:46]} Nxe6 {[%emt 0:00:00]} 25. Bc4 {[%emt 0:01:51]} Rd6 {[%emt 0:00:00]} 26. Bxe6+ {[%emt 0:00:51]} Rexe6 {[%emt 0:00:00]} 27. Rxe6 {[%emt 0:00:22]} Rxe6 {[%emt 0:00:00]} 28. Nd5 {[%emt 0:00:22]} d3 {[%emt 0:00:00]} 29. Ne3 {[%emt 0:01:22]} Bc5 {[%emt 0:00:00]} 30. Nc4 {[%emt 0:01:45]} Re4 {[%emt 0:00:00]} 31. Na5 {[%emt 0:02:04]} d2 {[%emt 0:00:00]} 32. Kf1 {[%emt 0:00:09]} Rxh4 {[%emt 0:00:00]} 33. Ke2 {[%emt 0:00:21]} Nxa5 {[%emt 0:00:00]} 34. Rd1 {[%emt 0:00:24]} Rxh5 {[%emt 0:00:00]} 35. Rxd2 {[%emt 0:00:18]} Re5+ {[%emt 0:00:00]} 36. Kf1 {[%emt 0:00:15]} Bb4 {[%emt 0:00:00]} 37. Rd8+ {[%emt 0:00:19]} Kf7 {[%emt 0:00:00]} 38. a3 {[%emt 0:00:02]} Re1# {[%emt 0:00:00]} 0-1